{"text_format":"3","workbook":"xlsx","n_sheets":18,"sheets":["Final summary","Preliminaries","Earthworks","Concrete, formwork + reinfmnt","Masonry","Waterproofing","Roof coverings, claddings, etc","Carpentry and joinery","Ceilings, partitions, etc","Structural Steel Work ","Ironmongery","Metalwork","Plastering","Tiling","Paintwork","Plumbing and drainage","External work","Messaurements"],"not_rendered":{"defined_names":18},"read":"whole","date_system":"1900"}

{"sheet":"Final summary","index":0,"n_rows":42,"n_cols":6,"rows_kept":42}
[null,"SUMMARY",{"$nulls":3},"TOTAL TO DATE"]
[]
[{"v":1,"d":"1 "},"Preliminaries","Page",null,null,{"$f":"Preliminaries!D432","v":0}]
[]
[{"v":2,"d":"2 "},"Earthworks (provisional)","Page",null,null,{"$f":"Earthworks!F56","v":0}]
[]
[{"v":3,"d":"3 "},"Concrete, formwork and reinforcement","Page",null,null,{"$f":"'Concrete, formwork + reinfmnt'!F66","v":0}]
[]
[{"v":4,"d":"4 "},"Masonry","Page",null,null,{"$f":"Masonry!F48","v":0}]
[]
[{"v":5,"d":"5 "},"Waterproofing","Page",null,null,{"$f":"Waterproofing!F51","v":0}]
[]
[{"v":6,"d":"6 "},"Roof coverings, claddings, etc","Page",null,null,{"$f":"'Roof coverings, claddings, etc'!F51","v":0}]
[]
[{"v":7,"d":"7 "},"Carpentry and joinery","Page",null,null,{"$f":"'Carpentry and joinery'!F38","v":0}]
[]
[{"v":8,"d":"8 "},"Ceilings, partitions and access flooring","Page",null,null,{"$f":"'Ceilings, partitions, etc'!F57","v":0}]
[]
[{"v":9,"d":"9 "},"Ironmongery","Page",null,null,{"$f":"Ironmongery!F33","v":0}]
[]
[{"v":10,"d":"10 "},"Metalwork","Page",null,null,{"$f":"Metalwork!F52","v":0}]
[]
[{"v":11,"d":"11 "},"Plastering","Page",null,null,{"$f":"Plastering!F56","v":0}]
[]
[{"v":12,"d":"12 "},"Tiling","Page",null,null,{"$f":"Tiling!F51","v":0}]
[]
[{"v":13,"d":"13 "},"Plumbing and drainage","Page",null,null,{"$f":"'Plumbing and drainage'!F46","v":0}]
[]
[{"v":14,"d":"14 "},"Paintwork","Page",null,null,{"$f":"Paintwork!F51","v":0}]
[]
[{"v":15,"d":"15 "},"External work","Page",null,null,{"$f":"'External work'!F28","v":0}]
[]
[]
[null,"Sub total Excluding Vat",{"$nulls":3},{"$f":"SUM(F2:F33)","v":0}]
[]
[null,"Add Contingency ",{"$nulls":3},{"v":300000,"d":"R300,000"}]
[]
[null,"Sub total 2 Excluding Vat"]
[]
[null,"Value added tax at 15%"]
[]
[null,"Subtotal Carried to Form of Offer"]

{"sheet":"Preliminaries","index":1,"n_rows":432,"n_cols":4,"rows_kept":432,"merged":[[0,2,0,3]]}
[]
["Item No",null,"Quantity","Amount"]
[null,"BILL NO 1"]
[]
[null,"PRELIMINARIES"]
[]
[null,"BUILDING AGREEMENT AND PRELIMINARIES"]
[]
[null,"Disclaimer"]
[]
[null,"While the ASAQS aims to ensure that its publications represent best practice, the ASAQS does not accept or assume any liability or responsibility for any events or consequences thereof that derive from the use of the Preliminaries Master Bill. Such Master Bill is not exhaustive and is therefore only intended to provide general guidance to those who wish to make use of it. This publication is provided \"as is\" without warranty of any kind, either expressed or implied including but without limitation to warranties of merchantability, fitness for a particular purpose and non-infringement"]
[]
[null,"The JBCC Series 2000 Principal Building Agreement (July 2007 edition 5.0 - reprint 1) prepared by the Joint Building Contract Committee shall be the applicable building agreement, amended as hereinafter described"]
[]
[null,"The JBCC Principal Building Agreement Contract Data EC and the JBCC Principal Building Agreement Contract Data CE form an integral part of this agreement."]
[]
[null,"The ASAQS Preliminaries (November 2007 edition) published by the Association of South African Quantity Surveyors for use with the said JBCC Principal Building Agreement shall be deemed to be incorporated in these provisional bills  of quantities"]
[]
[null,"Contractors are referred to the abovementioned documents for the full intent and meaning of each clause thereof"]
[]
[null,"These clauses are hereinafter referred to by clause number and heading only. Where standard clauses or alternatives are not entirely applicable to this  agreement such modifications, corrections or supplements as will apply are given under each relevant clause  heading  and  such  modifications,  corrections  or  supplements  shall  take precedence notwithstanding anything contrary contained in the abovementioned documents"]
[]
[null,"Where any item is not relevant to this specific agreement such item is marked N/A, signifying \"not applicable\""]
[]
[null,"PREAMBLES FOR TRADES"]
[]
[null,"The Model Preambles for Trades (2008 edition) as published by the Association of South African Quantity Surveyors shall be deemed to be incorporated in these provisional bills of quantities and no claims arising from brevity of description of items fully described in the said Model Preambles will be entertained"]
[]
[null,"Supplementary preambles are incorporated in these provisional bills of quantities to satisfy the requirements of this project. Such supplementary preambles shall take precedence over the provisions of the said Model Preambles"]
[]
[null,"The contractor's prices for all items throughout these provisional bills of quantities must  take  account  of  and  include  for  all  of  the  obligations,  requirements  and specifications given in the said Model Preambles and in any supplementary preambles"]
[]
[null,"PRICING OF PRELIMINARIES"]
[]
[null,"Should the contractor select Option A in terms of sub clause 3.2.1 in the Contract Data - Contractor to Employer (CE) for the purpose of adjustment of these preliminaries, the amount entered into the amount column in these preliminaries is to be divided into one or more of the three categories provided namely Fixed (F), Value Related (V) and Time Related (T)"]
[]
[null,"SECTION A - PRINCIPAL BUILDING AGREEMENT"]
[]
[null,"Definitions (A1)"]
[]
[1,"Clause 1.0 - Definitions and interpretation The measuring system used for the preparation of the provisional bills of quantities is the Standard System of Measuring Building Work (sixth edition, revised 1999) published by the Association of South African Quantity Surveyors [1.1]"]
[null,null,"Item"]
[]
[null,"Objective and preparations (A2 - A14)"]
[2,"Clause 2.0 - Offer acceptance and performance obligations"]
[null,"F: ............................ V: ............................ T: ............................","Item"]
{"$rows_empty":7}
[null,"Carried Forward","R"]
[null,"Brought Forward","R"]
[]
[3,"Clause 3.0 - Documents"]
[]
[null,"The contract drawings are as listed in Part C 3.3. Scope Of Works."]
[null,"Provision is made in the summary page of these provisional bills of quantities for the inclusion of Value Added Tax (VAT) [3.5]"]
[null,"The principal agent shall decide which portion of the priced document may be used as a specification of materials and goods or methods, if any [3.9]"]
[null,{"$f":"B46","v":"F: ............................ V: ............................ T: ............................"},"Item"]
[]
[4,"Clause 4.0 - Design responsibility"]
[null,{"$f":"B46","v":"F: ............................ V: ............................ T: ............................"},"Item"]
[]
[5,"Clause 5.0 - Employer's agents"]
[null,{"$f":"B65","v":"F: ............................ V: ............................ T: ............................"},"Item"]
[]
[6,"Clause 6.0 - Contractor's site representative"]
[null,null,"Item"]
[]
[7,"Clause 7.0 - Compliance with laws and regulations"]
[]
[null,"Without limiting the generality of the provisions of clause 7.0, the contractor's attention is drawn to the provisions of the Construction Regulations, 2003 issued in terms of the Occupational Health and Safety Act, 1993. It is specifically stated that the employer shall prepare a documented health and safety specification for the works (refer to Annexure 5.1 for a copy of the relevant specification) and that the employer shall ensure that the contractor has made provision for the cost of health and safety measures during the execution of the works. The  contractor shall price opposite this item (refer to Annexure 5.1 for a copy of the relevant Bills of Quantities for pricing) for compliance with the act and the regulations and the provisions of the aforementioned health and safety specification [7.1]"]
[null,{"$f":"B68","v":"F: ............................ V: ............................ T: ............................"},"Item"]
[]
[8,"Clause 8.0 - Works risk"]
[null,{"$f":"$B$76","v":"F: ............................ V: ............................ T: ............................"},"Item"]
[]
[9,"Clause 9.0 - Indemnities"]
[null,{"$f":"$B$76","v":"F: ............................ V: ............................ T: ............................"},"Item"]
[]
[10,"Clause 10.0 - General insurances"]
[null,{"$f":"$B$76","v":"F: ............................ V: ............................ T: ............................"},"Item"]
[]
[11,"Clause 11.0 - Special insurances"]
[null,{"$f":"$B$76","v":"F: ............................ V: ............................ T: ............................"},"Item"]
[]
[12,"Clause 12.0 - Effecting insurances"]
[null,{"$f":"$B$76","v":"F: ............................ V: ............................ T: ............................"},"Item"]
[]
[]
[]
[]
[null,"Carried Forward","R"]
[null,"Brought Forward","R"]
[]
[13,"Clause 13.0 - Assignment"]
[null,{"$f":"$B$76","v":"F: ............................ V: ............................ T: ............................"},"Item"]
[]
[14,"Clause 14.0 - Security"]
[null,{"$f":"$B$76","v":"F: ............................ V: ............................ T: ............................"},"Item"]
[]
[null,"Execution (A15 - A23)"]
[]
[15,"Clause 15.0 - Preparation for and execution of the works"]
[null,{"$f":"$B$76","v":"F: ............................ V: ............................ T: ............................"},"Item"]
[]
[16,"Clause 16.0 - Site and access"]
[]
[null,"A geotechnical investigation has been done and will be available for viewing at the offices of the Principal Agent. [16.4]"]
[null,"The contractor will have full use of the site. Refer to Site Information item C.4.1."]
[null,"There are no current structures or services such as water, sewerage and electricity on site and connections will have to be made to main supply lines. Services will be pointed out to the tenderers at the site inspection meeting. Refer to Scope Of Works item C.3.4. (Refer to clause 16.7)"]
[null,{"$f":"$B$76","v":"F: ............................ V: ............................ T: ............................"},"Item"]
[]
[17,"Clause 17.0 - Contract instructions"]
[null,{"$f":"B115","v":"F: ............................ V: ............................ T: ............................"},"Item"]
[]
[18,"Clause 18.0 - Setting out of the works"]
[null,"The contractor shall notify the principal agent if any encroachments of adjoining foundations, buildings, structures, pavements, boundaries, etc. exist in order that the necessary arrangements may be made for the rectification of any such encroachments [18.1]."]
[null,{"$f":"B118","v":"F: ............................ V: ............................ T: ............................"},"Item"]
[]
[19,"Clause 19.0 - Temporary works and plant"]
[null,"The contractor shall price opposite this item for compliance with all the requirements. Refer to item C.3.6.4. and C.4.1.3. Scope Of Works for details relating to enclosure and protection of the works and item 3.6.1. for office accommodation."]
[null,{"$f":"B122","v":"F: ............................ V: ............................ T: ............................"},"Item"]
[]
[20,"Clause 20.0 - Nominated subcontractors"]
[null,"Refer to the provisions on general attendance hereinafter"]
[null,{"$f":"B126","v":"F: ............................ V: ............................ T: ............................"},"Item"]
[21,"Clause 21.0 - Selected subcontractors"]
[]
[null,"General attendance of n/s subcontractors for pricing by the contractor shall be in accordance  with  the  n/s  agreement.   Notwithstanding  this  provision,  general attendance shall be deemed to include for the contractor to provide free of charge to any n/s subcontractor such scaffolding as may reasonably be required by such n/s subcontractor for the execution of the relevant subcontract work"]
[null,{"$f":"$B$76","v":"F: ............................ V: ............................ T: ............................"},"Item"]
[]
[22,"Clause 22.0 - Employer's direct contractors"]
[null,{"$f":"$B$76","v":"F: ............................ V: ............................ T: ............................"},"Item"]
[]
[23,"Clause 23.0 - Contractor's domestic subcontractors"]
[null,{"$f":"$B$76","v":"F: ............................ V: ............................ T: ............................"},"Item"]
[]
[null,"Completion (A24 - A30)"]
[]
[24,"Clause 24.0 - Practical completion"]
[null,{"$f":"$B$76","v":"F: ............................ V: ............................ T: ............................"},"Item"]
[]
[25,"Clause 25.0 - Works completion"]
[null,{"$f":"$B$76","v":"F: ............................ V: ............................ T: ............................"},"Item"]
[]
[26,"Clause 26.0 - Final completion"]
[null,{"$f":"$B$76","v":"F: ............................ V: ............................ T: ............................"},"Item"]
[]
[]
[null,"Carried Forward","R",{"$f":"SUM(D97:D153)","v":0}]
[null,"Brought Forward","R",{"$f":"D154","v":0}]
[]
[27,"Clause 27.0 - Latent defects liability period"]
[null,{"$f":"$B$76","v":"F: ............................ V: ............................ T: ............................"},"Item"]
[]
[28,"Clause 28.0 - Sectional completion"]
[null,"No sectional completion is anticipated."]
[null,{"$f":"$B$76","v":"F: ............................ V: ............................ T: ............................"},"Item"]
[]
[29,"Clause 29.0 - Revision of date for practical completion","R"]
[null,"The removal and replacement of materials and/or workmanship which do not conform to specification or the contract drawings shall not constitute grounds for the extension of the construction period nor for the adjustment of the contract value (Clause 29.3)"]
[null,{"$f":"$B$76","v":"F: ............................ V: ............................ T: ............................"},"Item"]
[]
[30,"Clause 30.0 - Penalty for late or non-completion"]
[null,{"$f":"$B$76","v":"F: ............................ V: ............................ T: ............................"},"Item"]
[]
[null,"Payment (A31 - A35)"]
[]
[31,"Clause 31.0 - Interim payment"]
[]
[null,"The inclusion of materials and goods stored off site in the amount authorised for payment in terms of clause 31.4 shall be at the sole discretion of the principal agent and such inclusion shall only be considered upon the provision, by the contractor, of an approved guarantee issued by a registered commercial bank. Clause 31.6.5 is therefore not applicable."]
[]
[]
[32,"Clause 32.0 - Adjustment to the contract value"]
[]
[null,"The contract value shall be adjusted according to CPAP using information stated in the Contract Data [32.13]. Fluctuations in costs in the rate of Value Added Tax shall be deemed incorporated into the contract."]
[null,"Where prices are submitted by the contractor or n/s subcontractor during the progress of the works in respect of contract instructions or in regard to a claim under the terms of the contract and notwithstanding the fact that such prices may be used in an interim payment certificate, there is to be no presumption of acceptance. Should the principal agent wish to accept any such prices prior to the issue of the certificate of final completion, it shall be in writing."]
[null,"The contractor shall not receive any mark-up for overheads and profit on any omission of tenant installation work or tenant installation work by others. Claims for loss or profit shall not be entertained [32.2]"]
[null,{"$f":"$B$76","v":"F: ............................ V: ............................ T: ............................"},"Item"]
[]
[33,"Clause 33.0 - Recovery of expense and loss"]
[null,{"$f":"$B$76","v":"F: ............................ V: ............................ T: ............................"},"Item"]
[]
[34,"Clause 34.0 - Final account and final payment"]
[null,{"$f":"$B$76","v":"F: ............................ V: ............................ T: ............................"},"Item"]
[]
[35,"Clause 35.0 - Payment to other parties"]
[null,{"$f":"$B$76","v":"F: ............................ V: ............................ T: ............................"},"Item"]
[]
[null,"Termination (A36 - A39)"]
[]
[36,"Clause 36.0 - Termination by employer - contractor's default"]
[null,{"$f":"$B$76","v":"F: ............................ V: ............................ T: ............................"},"Item"]
[]
[37,"Clause 37.0 - Termination by employer - loss and damage"]
[null,{"$f":"$B$76","v":"F: ............................ V: ............................ T: ............................"},"Item"]
[]
[38,"Clause 38.0 - Termination by contractor - employer's default"]
[null,{"$f":"$B$76","v":"F: ............................ V: ............................ T: ............................"},"Item"]
[]
[39,"Clause 39.0 - Termination - cessation of the works"]
[null,{"$f":"$B$76","v":"F: ............................ V: ............................ T: ............................"},"Item"]
[]
[]
[]
[null,"Carried Forward","R",{"$f":"SUM(D155:D209)","v":0}]
[null,"Brought Forward","R",{"$f":"D210","v":0}]
[]
[null,"Dispute (A40)"]
[]
[40,"Clause 40.0 - Settlement of disputes"]
[null,{"$f":"$B$76","v":"F: ............................ V: ............................ T: ............................"},"Item"]
[]
[null,"Contract variables (A41 - A42)"]
[]
[41,"Clause 41.0 - Post tender provisions"]
[null,"The contractor is to complete before submission of his tender the JBCC Principal Building Agreement Contract Data CE"]
[null,{"$f":"$B$76","v":"F: ............................ V: ............................ T: ............................"},"Item"]
[]
[42,"Clause 42.0 - Contractual agreement"]
[null,"The required information of the contracting parties and the amount of the accepted contract sum shall be inserted in the agreement for signature of the agreement by the parties"]
[null,{"$f":"$B$76","v":"F: ............................ V: ............................ T: ............................"},"Item"]
[]
[null,"SECTION B - PRELIMINARIES"]
[null,"Definitions and interpretation (B1)"]
[43,"Clause 1.0 - Definitions and interpretation"]
[null,{"$f":"$B$76","v":"F: ............................ V: ............................ T: ............................"},"Item"]
[]
[null,"Documents (B2)"]
[]
[44,"Clause 2.1 - Checking of documents"]
[null,{"$f":"$B$76","v":"F: ............................ V: ............................ T: ............................"},"Item"]
[]
[45,"Clause 2.2 - Provisional bills of quantities"]
[null,"These bills of quantities are in multiple procurement format ie the \"wet trades\" - earthworks,  concrete,  formwork  and  reinforcement,  precast  concrete,  masonry, waterproofing  and  sub-surface  drainage -  are  provisionally  measured  and  the subsequent trades are budgetary allowances and/or selected subcontract amounts."]
[null,{"$f":"$B$76","v":"F: ............................ V: ............................ T: ............................"},"Item"]
[]
[46,"B1.4 PROVISIONAL BILLS OF QUANTITIES"]
[null,{"$f":"$B$76","v":"F: ............................ V: ............................ T: ............................"},"Item"]
[]
[null,"Where reference is made in the documents to bills of quantities it shall be taken as referring to these Provisional Bills of Quantities. All quantities are provisional, are an indication of the extent and type of work to be executed and have been inserted in order to obtain competitive tenders. All work carried out under this contract shal be re measured and valued at schedule rates and in accordance with the Conditions of Contract"]
[]
[47,"Clause 2.3 - Availability of construction documentation"]
[null,"The  budgetary  allowances  and  selected  subcontract  amounts  allocated  for subsequent trades included in this agreement will be separately procured, based on multiple procurement of selected subcontractors during the construction period"]
[null,{"$f":"$B$76","v":"F: ............................ V: ............................ T: ............................"},"Item"]
[]
[null,"Previous work and adjoining properties (B3)"]
[]
[48,"Clause 3.1 - Previous work - dimensional accuracy"]
[null,{"$f":"$B$76","v":"F: ............................ V: ............................ T: ............................"},"Item"]
[]
[49,"Clause 3.2 - Previous work - defects"]
[null,{"$f":"$B$76","v":"F: ............................ V: ............................ T: ............................"},"Item"]
[]
[50,"Clause 3.3 - Inspection of adjoining properties"]
[null,{"$f":"$B$76","v":"F: ............................ V: ............................ T: ............................"},"Item"]
[]
[null,"Samples, shop drawings and manufacturer's instructions (B4)"]
[]
[51,"Clause 4.1 - Samples of materials"]
[null,{"$f":"$B$76","v":"F: ............................ V: ............................ T: ............................"},"Item"]
[]
[null,"Carried Forward","R",{"$f":"SUM(D211:D265)","v":0}]
[null,"Brought Forward","R",{"$f":"D267","v":0}]
[]
[]
[52,"Clause 4.2 - Workmanship samples"]
[null,{"$f":"$B$76","v":"F: ............................ V: ............................ T: ............................"},"Item"]
[]
[53,"Clause 4.3 - Shop drawings"]
[null,{"$f":"$B$76","v":"F: ............................ V: ............................ T: ............................"},"Item"]
[]
[54,"Clause 4.4 - Compliance with manufacturer's instructions"]
[null,{"$f":"$B$76","v":"F: ............................ V: ............................ T: ............................"},"Item"]
[]
[null,"Deposits and fees (B5)"]
[]
[55,"Clause 5.1 - Deposits and fees"]
[null,{"$f":"$B$76","v":"F: ............................ V: ............................ T: ............................"},"Item"]
[]
[null,"Temporary services (B6)"]
[]
[56,"Clause 6.1 - Water"]
[null,{"$f":"$B$76","v":"F: ............................ V: ............................ T: ............................"},"Item"]
[]
[57,"Clause 6.2 - Electricity"]
[null,{"$f":"$B$76","v":"F: ............................ V: ............................ T: ............................"},"Item"]
[]
[58,"Clause 6.3 - Two Name Boards (2)"]
[null,{"$f":"$B$76","v":"F: ............................ V: ............................ T: ............................"},"Item"]
[]
[59,"Clause 6.4 - Ablution facilities"]
[null,{"$f":"$B$76","v":"F: ............................ V: ............................ T: ............................"},"Item"]
[]
[null,"Clause 6.5 - Site Offices, Meeting, Storage & Engineer's Office","Item "]
[]
[60]
[null,"Clause 6.6 - Community Liaison Officer (8) Months","Item"]
[null,{"$f":"$B$76","v":"F: ............................ V: ............................ T: ............................"}]
[]
[]
[61,"Clause 8.1 - Special attendance"]
[null,{"$f":"$B$76","v":"F: ............................ V: ............................ T: ............................"},"Item"]
[]
[null,"General (B9)"]
[]
[62,"Clause 9.1 - Protection of the works"]
[null,"The contractor shall price opposite this item for compliance with all the requirements. Refer to Scope Of Works item C.4.1.3. for details relating to protection of the works"]
[null,{"$f":"$B$76","v":"F: ............................ V: ............................ T: ............................"},"Item"]
[]
[63,"Clause 9.2 - Protection/isolation of existing/sectional occupied works"]
[null,{"$f":"$B$76","v":"F: ............................ V: ............................ T: ............................"},"Item"]
[]
[64,"Clause 9.3 - Security of the works"]
[null,"The contractor shall price opposite this item for compliance with all the requirements. Refer to Scope Of Works item C.4.1.3. for details relating to security of the works"]
[null,{"$f":"$B$76","v":"F: ............................ V: ............................ T: ............................"},"Item"]
[]
[65,"Clause 9.4 - Notice before covering work"]
[null,{"$f":"$B$76","v":"F: ............................ V: ............................ T: ............................"},"Item"]
[]
[66,"Clause 9.5 - Disturbance"]
[null,"The contractor shall price opposite this item for compliance with all the requirements. Refer to Scope Of Works item C.4.1.5. for details relating to disturbance."]
[null,{"$f":"$B$76","v":"F: ............................ V: ............................ T: ............................"},"Item"]
[]
[67,"Clause 9.6 - Environmental disturbance"]
[null,"The contractor shall price opposite this item for compliance with all the requirements. Refer to Scope Of Works item C.4.1.6. for details relating to environmental disturbance."]
[null,{"$f":"$B$76","v":"F: ............................ V: ............................ T: ............................"},"Item"]
[]
[]
[null,"Carried Forward","R"]
[null,"Brought Forward"]
[]
[68,"Clause 9.7 - Works cleaning and clearing"]
[null,{"$f":"$B$76","v":"F: ............................ V: ............................ T: ............................"},"Item"]
[]
[null,"Brought Forward","R"]
[69,"Clause 9.8 - Vermin"]
[null,{"$f":"$B$76","v":"F: ............................ V: ............................ T: ............................"},"Item"]
[]
[70,"Clause 9.9 - Overhand work"]
[null,{"$f":"$B$76","v":"F: ............................ V: ............................ T: ............................"},"Item"]
[]
[null,"Schedule of variables (B10)"]
[]
[null,"Information necessary for elections and completion of those clauses contained in the schedule which are necessary for tender purposes is given hereunder.  Where no information is given it shall mean that no specific requirements are expected or that the clause is not relevant to this specific contract"]
[]
[null,"10.1 -   Provisional bills of quantities [clause 2.2]. The quantities are provisional - Applicable"]
[]
[null,"10.2 - Availability of construction documentation [clause 2.3]\nProvisional construction documentation is complete - Yes"]
[]
[null,"Construction documentation will be completed and available at the date the site is handed over to the successful contractor. The Principal Agent and Contractor shall work together and shall agree dates that are reasonable by when the contractor is to Be  provided with each  outstanding item of the  anticipated construction documentation."]
[]
[null,"10.3 - Previous work - dimensional accuracy [clause 3.1]"]
[]
[null,"10.4 - Previous work - defects [clause 3.2]"]
[]
[null,"10.5 - Inspection of adjoining properties [clause 3.3]"]
[]
[null,"10.6 - Water [clause 6.1.]\nOption A (by contractor) - Yes\nOption B (by employer - free of charge) - No\nOption C (by employer - metered) - No"]
[null,"The contractor shall install a water meter  to the existing water supply at approved points and provide the Principle Agent with regular readings of water consumption at a date to be advised."]
[]
[null,"10.7 -   Electricity [clause 6.2.]\nOption A (by contractor) - Yes\nOption B (by employer - free of charge) - No\nOption C (by employer - metered) - No"]
[]
[null,"The contractor shall install an electrical meter to the existing electricity supply at approved points and provide the Principle Agent with regular readings of electrical consumption at a date to be advised."]
[]
[null,"10.8 -   Telecommunications [clause 6.3.]\nTelephone - Yes\nFacsimile - No\nE-mail - No"]
[]
[null,"10.9 -   Ablution facilities [clause 6.4.]\nOption A (by contractor) - Yes\nOption B (by employer) - No"]
[]
[null,"10.10 - Protection of the works [clause 9.1]"]
[null,"The contractor shall refer to Scope of Works item C.4.1.3. For the protection of works."]
[]
[null,"10.11 -   Protection/isolation of existing/sectional occupied works [clause 9.2]\nProtection/isolation is required - No"]
[]
[]
[]
[null,"Carried Forward","R",{"$f":"SUM(D335:D380)","v":0}]
[null,"Brought Forward","R",{"$f":"D381","v":0}]
[]
[null,"10.12 - Disturbance [clause 9.5]"]
[null,"The contractor shall refer to Scope of Works item C.4.1.5. for disturbance."]
[]
[null,"10.13 - Environmental disturbance [clause 9.6]"]
[null,"The contractor shall refer to Scope Of Works item C.4.1.6. for environmental disturbance"]
[]
[null,"SECTION  C - SPECIFIC PRELIMINARIES"]
[71,"Site instructions"]
[null,"Contract Instructions issued on site are to be recorded in triplicate in a site instruction book which is to be maintained on site by the contractor"]
[null,{"$f":"$B$76","v":"F: ............................ V: ............................ T: ............................"},"Item"]
[]
[72,"Warranties for material and workmanship"]
[null,"Where warranties for materials and/or workmanship are called for, the contractor shall obtain a written warranty, addressed to the employer, from the firm supplying the materials and/or doing the work and shall deliver same to the principal agent on the final completion of the contract. The warranty shall state that workmanship, materials and installation are warranted for a specified period from the date of final completion and that any defects that may arise during the specified period shall be made good at the expense of the firm supplying the materials and/or doing the work,upon written notice to do so. The warranty will not be enforced if the work is damaged by defects in the construction of the building in which case the responsibility for replacement shall rest entirely with the contractor"]
[null,{"$f":"$B$76","v":"F: ............................ V: ............................ T: ............................"},"Item"]
[]
[73,"Co-operation of contractor for cost management"]
[null,"It is specifically agreed that the contractor accepts the obligation of assisting the principal agent in implementing proper cost management. The contractor will be advised by the principal agent of all cost management procedures which will be implemented to ensure that the final building cost does not exceed the budget. The principal agent undertakes to make available to the contractor all budgetary allowances and cost assessments/reports to enable the proper procedure to be implemented  and  the  contractor  shall  attend  all  cost  plan  review  and  cost management meetings. The contractor undertakes to extend these procedures, as necessary, to all subcontractors"]
[null,{"$f":"$B$76","v":"F: ............................ V: ............................ T: ............................"},"Item"]
[]
[74,"Propping of floors below"]
[]
[null,"The contractor is advised that propping of floors below may be required if he wishes to use any areas of completed suspended reinforced concrete slabs for vehicle access, storage of materials and goods and location of plant, scaffolding, etc. The location of these areas and any necessary propping shall be approved by the principal agent and the cost thereof shall be borne by the contractor"]
[null,{"$f":"$B$76","v":"F: ............................ V: ............................ T: ............................"},"Item"]
[]
[75,"Testing of windows for water tightness"]
[]
[null,"Each window shall be tested for water tightness with water sprayed on using adequate pressure. If in the opinion of the principal agent, the pressure proves to be inadequate, then the pressure shall be boosted by means of compressed air or other approved means"]
[null,{"$f":"$B$76","v":"F: ............................ V: ............................ T: ............................"},"Item"]
{"$rows_empty":9}
[null,"Carried Forward","R",{"$f":"SUM(D382:D419)","v":0}]
[null,"Brought Forward","R"]
[]
[76,"Testing of roof waterproofing for water tightness"]
[]
[null,"Flat roof waterproof areas shall be prepared with small sand dykes around them of a size and enclosing an area approved by the principal agent, flooded with water and kept \"ponded\" for at least 36 hours as a test to ensure the water tightness of the waterproofing and before any further construction work is carried out above the waterproofing"]
[null,{"$f":"$B$76","v":"F: ............................ V: ............................ T: ............................"},"Item"]
[]
[]
[]
[]
[null,"Carried to Final Summary","R"]

{"sheet":"Earthworks","index":2,"n_rows":56,"n_cols":6,"rows_kept":56,"merged":[[0,3,0,5]]}
[{"$nulls":3},"Tender"]
["Item No",null,null,"Quantity","Rate","Amount"]
[]
[null,"EARTHWORKS (PROVISIONAL)"]
[]
[null,"Nature of ground"]
[]
[null,"The nature of the ground is assumed to be loose sandy material, therefore \"earth\", but possibly interspersed with \"soft rock\" or \"hard rock\""]
[null,"The nature of the ground is assumed to be gravel, therefore \"earth\", but possibly interspersed with \"soft rock\" or \"hard rock\""]
[]
[null,"The nature of the ground is assumed to be silty clay with loose river boulders varying in size up to approximately 450mm diameter, all of which will be deemed as \"earth\", but possibly interspersed with \"hard rock\""]
[null,"Trial holes indicate that the nature of the ground is silty clay to a depth of approximately 500mm with fine to medium loose sandy material below, therefore \"earth\""]
[]
[null,"A soils investigation has been carried out on the site by the engineer and the report is annexed to these bills of quantities.  The soils report indicates that the ground varies between silty sand, reworked soil of mixed origin and residual shale, all of which will be deemed as \"earth\". All very hard unweathered shale, ironstone, etc, the removal of which necessitates the use of explosives or heavy duty hydraulic percussion hammers (peckers), will be classified as \"hard rock\""]
[]
[null,"Carting away of excavated material"]
[]
[null,"Descriptions of carting away of excavated material shall be deemed to include loading excavated material onto trucks directly from the excavations or, alternatively, from stock piles situated on the building site"]
[]
[null,"Filling and layer work materials"]
[]
[null,"References such as \"G1\", \"G2\", etc and \"C1\", \"C2\", etc in descriptions of filling and layer work materials refer to corresponding references in the document \"Guidelines for Road Construction Materials.  TRH 14 : 1985\" compiled by the Committee of State Road Authorities and the properties set out therein for each kind shall be applicable to the respective materials described hereinafter"]
[null,"Testing"]
[]
[null,"Prices for filling are to include for all necessary density and other tests"]
[]
[null,"SITE CLEARANCE"]
[]
[null,"Site clearance"]
[]
[{"v":1,"d":"1 "},"1.1. Digging up and removing rubbish, debris, vegetation, hedges, shrubs, bush, etc and trees not exceeding 200mm girth","m2",390]
[]
[null,"1.2. Demolition (Demolition and Clearing all existing structures as per the Engineer's Instruction",null,"sum "]
[]
[null,"EXCAVATIONS ETC"]
[]
[null,"Digging up topsoil"]
[]
[{"v":2,"d":"2 "},"Digging up topsoil to an average depth of ?mm and preserving for use of filling","m2",{"$f":"D31","v":390}]
[]
[null,"Excavation in earth not exceeding 2m deep"]
[]
[{"v":3,"d":"3 "},"Trenches","m3",200]
[]
[null,"FILLING ETC"]
[]
[null,"Filling of natural gravel material (G7) supplied by the contractor, compacted to 93% Mod AASHTO density"]
[]
[{"v":4,"d":"4 "},"Over site to make up levels","m3",80]
[]
[{"v":5,"d":"5 "},"Backfilling to trenches, holes, etc","m3",250]
[]
[]
[]
[]
[null,"Carried to final summary"]

{"sheet":"Concrete, formwork + reinfmnt","index":3,"n_rows":66,"n_cols":6,"rows_kept":66,"merged":[[0,3,0,5]]}
[{"$nulls":3},"Tender"]
["Item No",null,null,"Quantity","Rate","Amount"]
[]
[null,"CONCRETE, FORMWORK AND REINFORCEMENT"]
[]
[null,"Cost of tests"]
[]
[null,"The costs of making, storing and testing of concrete test cubes as required under clause 7 \"Tests\" of SABS 1200 G shall include the cost of providing cube moulds necessary for the purpose, for testing costs and for submitting reports on the tests for approval.  The testing shall be undertaken by an approved independent firm or institution nominated by the contractor (test cubes are measured separately)"]
[]
[null,"Formwork"]
[]
[null,"Descriptions of formwork shall be deemed to include use and waste only (except where described as \"left in\" or \"permanent\"), for fitting together in the required forms, wedging, plumbing and fixing to true angles and surfaces as necessary to ensure easy release during stripping and for reconditioning as necessary before re-use"]
[]
[null,"The vertical strutting shall be carried down to such construction as is sufficiently strong to afford the required support without damage and shall remain in position until the newly constructed work is able to support itself"]
[null,"Formwork to soffits of solid slabs etc shall be deemed to be to slabs not exceeding 250mm thick unless otherwise described"]
[]
[null,"Formwork to soffits of slabs, beams, etc shall be deemed to be propped up exceeding 1,5m and not exceeding 3,5m high unless otherwise described"]
[null,"Formwork to sides of bases, pile caps, ground beams, etc will only be measured where it is prescribed by the engineer for design reasons.  Formwork necessitated by irregularity or collapse of excavated faces will not be measured and the cost thereof shall be deemed to be included in the allowance for taking the risk of collapse of the sides of the excavations, provision for which is made in \"Earthworks\""]
[]
[null,"REINFORCED CONCRETE CAST ON/IN FORMWORK"]
[]
[null,"REINFORCED CONCRETE CAST AGAINST EXCAVATED SURFACES"]
[null,"25MPa/19mm concrete"]
[]
[{"v":23,"d":"23 "},"Strip footings","m3",60]
[]
[{"v":29,"d":"29 "},"Surface beds on waterproofing","m3",33]
[]
[]
[null,"TEST CUBES"]
[]
[{"v":57,"d":"57 "},"Making and testing 150 x 150 x 150mm concrete strength test cube (Provisional)","No",17]
[]
[null,"REINFORCEMENT"]
[]
[null,"REINFORCEMENT (PROVISIONAL)"]
[]
[null,"Mild steel reinforcement to structural concrete work"]
[]
[{"v":327,"d":"327 "},"8 mm Diameter bars","t",8.6]
[]
[null,"High tensile steel reinforcement to structural concrete work"]
[]
[{"v":327,"d":"327 "},"10 mm Diameter bars","t",3.6]
[]
[null,"Fabric reinforcement"]
[]
[{"v":334,"d":"334 "},"Type 193 fabric reinforcement in concrete surface beds etc","m2",373]
{"$rows_empty":17}
[null,"Carried to final summary",{"$nulls":3},{"$f":"SUM(F25:F48)","v":0}]

{"sheet":"Masonry","index":4,"n_rows":48,"n_cols":6,"rows_kept":48,"merged":[[1,2,1,5],[3,3,3,5]]}
[]
[null,"BILL NO 3 MASONRY","UPGRADING OF DELAREYVILLE SPORTS COMPLEX"]
[]
[{"$nulls":3},"Tender"]
["Item No",null,null,"Quantity","Rate","Amount"]
[]
[null,"BRICKWORK"]
[]
[null,"SUPERSTRUCTURE"]
[]
[null,"Brickwork of NFX bricks (14 MPa nominal compressive strength) in class II mortar"]
[]
[{"v":1,"d":"1 "},"Half brick walls","m2",385]
[]
[{"v":2,"d":"2 "},"One brick walls","m2",840]
[]
[null,"BRICKWORK SUNDRIES"]
[]
[null,"2,5mm Galvanised brick reinforcement"]
[]
[{"v":3,"d":"3 "},"75mm Wide reinforcement built in horizontally","m",900]
[]
[{"v":4,"d":"4 "},"150mm Wide reinforcement built in horizontally","m",2000]
[]
[null,"Prestressed fabricated concrete lintels including necessary temporary supports"]
[{"v":5,"d":"5 "},"110mm Lintels in lengths not exceeding 3m","m",345]
{"$rows_empty":21}
[null,"Carried to final summary",{"$nulls":3},{"$f":"SUM(F6:F47)","v":0}]

{"sheet":"Waterproofing","index":5,"n_rows":51,"n_cols":6,"rows_kept":51,"merged":[[0,3,0,5]]}
[{"$nulls":3},"Tender"]
["Item No",null,null,"Quantity","Rate","Amount"]
[null,"DAMPPROOFING OF WALLS AND FLOORS"]
[]
[]
[null,"One layer 375 micron embossed polyethylene dampproof course (SANS 952-1985 type B)"]
[]
[{"v":1,"d":"1 "},"In walls","m",345]
[]
[null,"One layer 250 micron green polyethylene waterproof sheeting (SANS 952-1985 type C) sealed at laps with PVC self-adhesive tape"]
[]
[{"v":2,"d":"2 "},"Under surface beds","m2",400]
{"$rows_empty":38}
[null,"Carried to final summary",{"$nulls":3},{"$f":"SUM(F3:F50)","v":0}]

{"sheet":"Roof coverings, claddings, etc","index":6,"n_rows":51,"n_cols":6,"rows_kept":51,"merged":[[1,0,1,1],[1,2,1,5],[3,3,3,5]]}
[]
["BILL NO 5 WATERPROOFING",null,"UPGRADING OF DELARAYVILLE SPORTS COMPLEX"]
[]
[{"$nulls":3},"Tender"]
["Item No",null,null,"Quantity","Rate","Amount"]
[]
[null,"PROFILED METAL SHEETING AND ACCESSORIES"]
[]
[null,"0.58mm \"Cliplok\" or similar approived roof sheeting fixed to timberpurlins"]
[]
[{"v":1,"d":"1 "},"Roof covering with pitches not exceeding 25 degrees - Pavilion","m2",310]
[]
[{"v":2,"d":"2 "},"Roof covering with pitches not exceeding 25 degrees - Hall","m2",260]
{"$rows_empty":37}
[null,"Carried to final summary",{"$nulls":3},{"$f":"SUM(F6:F50)","v":0}]

{"sheet":"Carpentry and joinery","index":7,"n_rows":38,"n_cols":6,"rows_kept":38,"merged":[[0,3,0,5]]}
[{"$nulls":3},"Tender"]
["Item No",null,null,"Quantity","Rate","Amount"]
[null,"STRUCTURAL TIMBERWORK ETC"]
[]
[]
[{"v":1,"d":"1 "},"Supply and install roof truss system, including roof rixing purlines (sheeting measured elsewhere) for Multi-Purpose Building as per 18007-0002","Sum",1]
[]
[{"v":2,"d":"2 "},"Supply and install roof truss system, including roof rixing purlines (sheeting measured elsewhere) for Gatehouse as per 18007-0003","Sum",1]
[]
[]
[null,"FLOORS AND SKIRTINGS"]
[]
[]
[null,"SKIRTINGS"]
[]
[null,"Wrought meranti"]
[]
[{"v":3,"d":"3 "},"75 x 12mm Skirtings","m",200]
[]
[]
[{"v":4,"d":"4 "},"20 x 20mm Skirtings including ?mm quadrant bead, nailed","m",{"$f":"D18","v":200}]
[]
[null,"TIMBER DOORS, WINDOWS, ETC"]
[]
[null,"DOORS ETC"]
[]
[null,"Hollow core flush doors with commercial veneer, hung to steel frames"]
[]
[{"v":5,"d":"5 "},"40mm Door 2100 x 850mm high","No",30]
[]
[{"v":6,"d":"6 "},"40mm  Double door 2100 x 1500mm high with rebated (flush?) meeting edges","No",6]
[]
[null,"CUPBOARDS TO KITCHENS, BEDROOMS, ETC"]
[]
[{"v":7,"d":"7 "},"Kitchen Cupboards for Multi-Purpose Building","Sum",2]
[]
[{"v":8,"d":"8 "},"Carpentry for changes rooms","Sum",2]
[null,"Carried to final summary"]

{"sheet":"Ceilings, partitions, etc","index":8,"n_rows":57,"n_cols":6,"rows_kept":57,"merged":[[4,3,4,5]]}
[]
["BILL NO 7",null,null,"UPGRADING OF DELARAYVILLE SPORTS COMPLEX"]
["CARPENTRY AND JOINERY"]
[]
[{"$nulls":3},"Tender"]
["Item No",null,null,"Quantity","Rate","Amount"]
[null,"NAILED-UP CEILINGS"]
[]
[null,"6,4mm Gypsum plasterboard with H-profile galvanised steel jointing strips"]
[]
[{"v":1,"d":"1 "},"Ceilings including standard steel brandering at 500mm centres in one direction onlY","m2",385]
[]
[null,"Gypsum plasterboard cornices"]
[]
[{"v":2,"d":"2 "},"75mm Coved cornices","m",250]
{"$rows_empty":41}
[null,"Carried to final summary"]

{"sheet":"Structural Steel Work ","index":9,"n_rows":57,"n_cols":6,"rows_kept":57}
[]
[]
[]
["ITEM NO",null,null,"Quantity","Rate","Amount"]
[null,"STRUCTURAL STEELWORK"]
[]
[null,"User note"]
[]
[null,"Insert preambles/specifications as may be required or in order to supplement any applicable preambles, specifications or bills of quantities descriptions"]
[null,"Take note that these Model Bills of Quantities utilise abbreviated descriptions"]
[null,"The Model Preambles for Trades 2008 published by the Association of South African Quantity Surveyors is designed to support and extend the abbreviated bills of quantities descriptions by inter alia referring to SANS construction standards. Where such model preambles are not applicable (eg where BS or Euro construction standards are applicable or the design consultants provide other preambles/specifications for insertion), users are to ensure that the abbreviated descriptions when read in conjunction with the applicable measuring system, represents the full description by extending the abbreviated bills of quantities descriptions and/or by inserting appropriate preambles or specifications "]
[null,"Consider inserting the preambles hereunder when using the abovementioned Model Preambles for Trades 2008"]
[]
[null,"Consideration is to be given in specific applications (e.g. where \"heavy\" steel structures such as in industrial plants, towers for mine shafts, etc are dominant) to implement the principles laid down by the \"Measurement for Structural Steelwork\" as prepared and recommended by the South African Institute of Steel Construction or any other appropriate principles  This bill is, however, based on the building work measuring  system"]
[null,"Finishing-off painting is to be included in this trade only when the structural steel contractor is required to execute the work"]
[]
[null,"Descriptions"]
[]
[null,"Descriptions of bolts shall be deemed to include nuts and washers"]
[]
[null,"Descriptions of L-shaped and U-shaped anchor bolts shall be deemed to include bending, threading, nuts and washers and embedding in concrete"]
[null,"Descriptions of expansion anchors and bolts and chemical anchors and bolts shall be deemed to include nuts, washers and mortices in brickwork or concrete"]
[]
[null,"STEEL COLUMNS AND BEAMS"]
[]
[null,"STEEL COLUMNS AND BEAMS"]
[]
[null,"User note"]
[]
[null,"In the event of there being only a limited number of different heights or lengths of columns or beams, the specific heights or lengths may be given separately or may be suitably grouped together"]
[]
[null,"Welded columns in single lengths with flat base, cap, bearer and connection plates, bolted to concrete"]
[]
[{"v":1,"d":"1 "},"246X147mm x 37kg/m I-section","t",10.8,null,{"$f":"D34*E34","v":0}]
[]
[]
[null,"STEEL TRUSSES"]
[]
[null,"STEEL TRUSSES"]
[]
[null,"Welded roof trusses of angle rafters, tie beams, rails, struts, braces, cleats, etc and flat bearer, gusset and connection plates, bolted to steel"]
[{"v":36,"d":"36 "},"Truss 2 (No 12 )","t",2.4,null,{"$f":"D42*E42","v":0}]
[]
[{"v":37,"d":"37 "},"Truss 3 (No 2)","t",0.4,null,{"$f":"D44*E44","v":0}]
[]
[null,"STEEL PURLINS, GIRTS, BRACING, ETC"]
[]
[null,"Purlins and girts, bolted to steel"]
[]
[{"v":42,"d":"42 "},"125 x 65 x 20 x 2,5mm Thick cold-formed lipped channel purlins","t",1.5,null,{"$f":"D50*E50","v":0}]
[]
[]
[null,"Welded bracing, anti-sag rails, etc with flat connection plates, bolted to steel"]
[]
[{"v":45,"d":"45 "},"Angle bracing","t",0.8,null,{"$f":"D55*E55","v":0}]
[]
[null,"Carried to final summary",{"$nulls":3},{"$f":"SUM(F11:F56)","v":0}]

{"sheet":"Ironmongery","index":10,"n_rows":33,"n_cols":6,"rows_kept":33,"merged":[[4,3,4,5]]}
[]
[]
[]
[]
[{"$nulls":3},"Tender"]
["Item No",null,null,"Quantity","Rate","Amount"]
[null,"LOCKS"]
[]
[null,"Keys"]
[]
[null,"Unless otherwise described locks shall have two keys each"]
[]
[null,"EN-SUITE LOCKS"]
[]
[]
[null,"The following locks are to be suitable for master and grand master key operation"]
[]
[]
[{"v":1,"d":"1 "},"Three-lever rebated lockset","No",35]
[]
[{"v":2,"d":"2 "},"Master key","No",5]
[]
[null,"FIRE SIGNAGE"]
[]
[null,"Signage to SANS standrards for all fire requirements."]
[]
[{"v":3,"d":"3 "},"Supply, delivery and installation of a wall mounted single sided 150mm module Green Photo Luminescent E3 Fire Escape sign","No",4]
[]
[{"v":4,"d":"4 "},"Supply, delivery and installation of a wall mounted single sided 150mm module Red Photo Luminescent F4 Fire Extinguisher sign ","No",12]
[]
[{"v":5,"d":"5 "},"Supply, delivery and installation of a wall mounted single sided 150mm module Red Photo Luminescent F13 Fire Hose Reel Extinguisher sign","No",3]
[]
[null,"Carried to final summary"]

{"sheet":"Metalwork","index":11,"n_rows":52,"n_cols":6,"rows_kept":52,"merged":[[0,3,0,5]]}
[{"$nulls":3},"Tender"]
["Item No",null,null,"Quantity","Rate","Amount"]
[null,"PRESSED STEEL DOOR FRAMES"]
[]
[null,"1,2mm Rebated frames suitable for half brick walls"]
[]
[{"v":1,"d":"1 "},"Frame for door 2100 x 850mm high","No",15]
[]
[null,"1,6mm Rebated frames suitable for one brick walls"]
[]
[{"v":2,"d":"2 "},"Frame for door 2100 x 850mm high","No",{"$f":"Messaurements!N17+Messaurements!N18","v":6}]
[]
[null,"STEEL WINDOWS"]
[]
[null,"Standard residential windows (Including Glazing, and Enamel Paint)"]
[]
[{"v":3,"d":"3 "},{"$f":"Messaurements!A10","v":"ND4F"},"No",12]
[]
[{"v":4,"d":"4 "},{"$f":"Messaurements!A11","v":"NC1"},"No",5]
[]
[{"v":5,"d":"5 "},{"$f":"Messaurements!A12","v":"NE2"},"No",6]
[]
[{"v":6,"d":"6 "},{"$f":"Messaurements!A13","v":"NE1"},"No",30]
[]
[{"v":7,"d":"7 "},{"$f":"Messaurements!A14","v":"NC2F"},"No",5]
[]
[{"v":8,"d":"8 "},{"$f":"Messaurements!A15","v":"NCTX7S5"},"No",5]
{"$rows_empty":24}
[null,"Carried to final summary",{"$nulls":3},{"$f":"SUM(F3:F51)","v":0}]

{"sheet":"Plastering","index":12,"n_rows":56,"n_cols":6,"rows_kept":56,"merged":[[5,3,5,5]]}
[]
[]
[]
[]
[]
[{"$nulls":3},"Tender"]
["Item No",null,null,"Quantity","Rate","Amount"]
["ITEM NO",null,null,"QUANTITY","RATE","AMOUNT"]
[]
[null,"PLASTER"]
[]
[null,"Cement plaster wood floated, on concrete"]
[]
[{"v":1,"d":"1 "},"On walls","m2",2250]
{"$rows_empty":41}
[null,"Carried to final summary",{"$nulls":3},{"$f":"SUM(F9:F55)","v":0}]

{"sheet":"Tiling","index":13,"n_rows":51,"n_cols":6,"rows_kept":51,"merged":[[0,3,0,5]]}
[{"$nulls":3},"Tender"]
["Item No",null,null,"Quantity","Rate","Amount"]
[null,"FLOOR TILING"]
[]
[null,"350 x 350 x 8mm matt ceramic floor tiles on 8mm bedding on concrete and flush pointed with tinted  grout"]
[]
[{"v":1,"d":"1 "},"On floors and landings","m2",550]
{"$rows_empty":43}
[null,"Carried to final summary",{"$nulls":3},{"$f":"SUM(F7:F50)","v":0}]

{"sheet":"Paintwork","index":14,"n_rows":51,"n_cols":6,"rows_kept":51,"merged":[[0,3,0,5]]}
[{"$nulls":3},"Tender"]
["Item No",null,null,"Quantity","Rate","Amount"]
[null,"FINISH ON NEW WORK"]
[]
[null,"ON FLOATED PLASTER SURFACES"]
[]
[null,"One coat acrylic masonry primer, two coats pre-pigmented texturised pure acrylic coating and one acrylic glaze coat, applied by specialists"]
[]
[{"v":1,"d":"1 "},"Walls","m2",2250]
{"$rows_empty":41}
[null,"Carried to final summary",{"$nulls":3},{"$f":"SUM(F8:F50)","v":0}]

{"sheet":"Plumbing and drainage","index":15,"n_rows":46,"n_cols":6,"rows_kept":46,"merged":[[0,3,0,5]]}
[{"$nulls":3},"Tender"]
["Item No",null,null,"Quantity","Rate","Amount"]
[null,"SANITARY FITTINGS"]
[]
[]
[{"v":1,"d":"1 "},"WC pan with double flap heavy duty plastic seat (including all plumbing fittings)","No",11]
[]
[{"v":2,"d":"2 "},"Wall urinal with spreader and waste union(including all plumbing fittings","No",{"$f":"Messaurements!N25","v":4}]
[]
[{"v":3,"d":"3 "},"Shower complete with all fittings","No",{"$f":"Messaurements!N23","v":11}]
[]
[{"v":4,"d":"4 "},"Ceramic wash basins (incluidng all plumbing fittings)","No",15]
[]
[null,"SANITARY PLUMBING"]
[]
[{"v":5,"d":"5 "},"Supply, and install all sewerage systems for the sport facility, including new and renovated areas","Sum",1]
[]
[null,"WATER SUPPLIES"]
[]
[{"v":6,"d":"6 "},"Supply, and install all water systems for the sport facility, including new and renovated areas.","Sum",1]
[]
[null,"AS-BUILT DRAWINGS"]
[]
[{"v":7,"d":"7 "},"Provision of as-built drawings","Item",1]
[]
[null,"FIRE PROTECTION"]
[]
[{"v":8,"d":"8 "},"4.5 kg CO2 Extinguisher complete with mounting board and hanging bracket","No",4]
[]
[{"v":9,"d":"9 "},"9 kg DCP Extinguisher complete with mounting board and hanging bracket","No",8]
[]
[null,"Install non-swinging, rotary pattern type fire hose reels in the positions as indicated on the project drawings. The fire hose reels must be complete with 30 m long, 20 mm diameter hose, hose run-out guide, clamps, nozzle bracket, fixing brackets and bolts, nozzle-cock and 25 mm stop valve all to conform to SANS 543. ","No",3]
{"$rows_empty":13}
[null,"Carried to final summary"]

{"sheet":"External work","index":16,"n_rows":28,"n_cols":6,"rows_kept":28,"merged":[[0,3,0,5]]}
[{"$nulls":3},"Tender"]
["Item No",null,null,"Quantity","Rate","Amount"]
[]
[]
[null,"PERIMITER WALL"]
[]
[]
[{"v":1,"d":"1 "},"Supply and install fencing around the grass athletic track, rugby and soccer field."]
{"$rows_empty":19}
[null,"Carried to final summary",{"$nulls":3},{"$f":"SUM(F3:F27)","v":0}]

{"sheet":"Messaurements","index":17,"n_rows":58,"n_cols":14,"rows_kept":58,"hidden":true}
["Descriptions",null,"Units",null,"Hall",null,"Pavillion",null,"Gatehouse",null,"Total","Add Contingency","Rounding"]
["Masonry"]
["230mm Walls",null,"m2",null,{"$f":"(50+8+15+4+4)*3.5","v":283.5},1,{"$f":"(32.7*2.8)+(32.7*5.9)+((((2.8+5.9)/2)*4.5)*4)","v":362.79},1,{"$f":"12.4*3.5","v":43.4},1,{"$f":"(E3*F3)+(G3*H3)+(I3*J3)","v":689.6899999999999},{"$f":"K3*1.05","v":724.1745},10,{"$f":"ROUNDUP((L3/M3),0)*M3","v":730}]
["115m Walls",null,"m2",null,{"$f":"(6+3.2+6+3.6+3.6+3.4+0.7+3.2+4.3+1.2+1+3.2+4.4+1.2+1)*3","v":138.00000000000003},1,{"$f":"((2+4+4.7+4+1.7+3.8+2+2+0.9+2.2)*2)*2.5","v":136.5},1,{"$f":"2.9*3","v":8.7},1,{"$f":"(E4*F4)+(G4*H4)+(I4*J4)","v":283.2},{"$f":"K4*1.05","v":297.36},10,{"$f":"ROUNDUP((L4/M4),0)*M4","v":300}]
["Concrete"]
["700x300 Strip Footings",null,"m3",null,{"$f":"(E3/3.5)*0.7*0.3","v":17.009999999999998},1,{"$f":"(75+(4.46*2))*0.7*0.3","v":17.6232},1,{"$f":"(I3/3.5)*0.7*0.3","v":2.6039999999999996},1,37.2372,39.09906,5,40]
["500x250 Strip Footings",null,"m3",null,{"$f":"(E4/3)*0.5*0.2","v":4.6000000000000005},1,{"$f":"(G4/2.5)*0.5*0.25","v":6.825},1,{"$f":"(I4/3)*0.5*0.2","v":0.29},1,11.715,12.30075,5,15]
["75mm Surface Bed",null,"m2",null,{"$f":"11.5+7.1+46.5+5.8+5.8+9+9.6+9.4+5.6+9.4+9.6+8","v":137.29999999999998},1,145.9,1,9.5,1,{"$f":"((E8*F8)+(G8*H8)+(I8*J8))*0.075","v":21.952499999999997},23.050124999999998,5,25]
["Windows"]
["ND4F",null,"No",null,4,1,6,1,null,1,10,10.5,1,11]
["NC1",null,"No",null,2,1,null,1,null,1,2,2.1,1,3]
["NE2",null,"No",null,3,1,null,1,null,1,3,3.1500000000000004,1,4]
["NE1",null,"No",null,16,1,4,1,1,1,21,22.05,1,23]
["NC2F",null,"No",null,1,1,null,1,null,1,1,1.05,1,2]
["NCTX7S5",null,"No",null,null,1,null,1,1,1,1,1.05,1,2]
["Doors"]
["230 Single - LH",null,"No",null,null,1,2,1,null,1,2,2.1,1,3]
["230 Single - RH",null,"No",null,null,1,2,1,null,1,2,2.1,1,3]
["115 Single - LH",null,"No",null,6,1,4,1,1,1,11,11.55,1,12]
["115 Single - RH",null,"No",null,5,1,4,1,1,1,10,10.5,1,11]
["230 Double",null,"No",null,2,1,null,1,null,1,2,2.1,1,3]
["Plumbing"]
["Showers",null,"No",null,4,1,6,1,null,1,10,10.5,1,11]
["W/C",null,"No",null,4,1,6,1,1,1,11,11.55,1,12]
["Urinals",null,"No",null,1,1,2,1,null,1,3,3.1500000000000004,1,4]
["Wash Basin",null,"No",null,6,1,8,1,1,1,15,15.75,1,16]
["Kitchen Sink",null,"No",null,1,1,null,1,null,1,1,1.05,1,2]
["Ceilings"]
["Isoboard",null,"m2",null,{"$f":"E8","v":137.29999999999998},1,null,1,{"$f":"I8","v":9.5},1,146.79999999999998,154.14,10,160]
["Cornince",null,"m",null,{"$f":"11+13.6+27.6+10.4+10.4+12.2+12.4+12.3+10.2+12.4+12.3","v":144.8},1,null,1,12.3,1,157.10000000000002,164.95500000000004,10,170]
["Floor Finishing"]
["Ceramic Tiles",null,"m2",null,{"$f":"E8-E33","v":129.29999999999998},1,{"$f":"G8","v":145.9},1,{"$f":"I8","v":9.5},1,284.7,298.935,5,300]
["Terazzo Tiles",null,"m2",null,8,1,null,1,null,1,8,8.4,5,10]
["Plaster"]
["Both Sides",null,"m2",null,{"$f":"(E3*2)+(E4*2)","v":843},1,{"$f":"(G3+G4)*2","v":998.58},1,{"$f":"(I3+I4)*2","v":104.19999999999999},1,1945.78,2043.069,10,2050]
["Painting"]
["Plaster Primer",null,"m2",null,{"$f":"E35","v":843},1,{"$f":"G35","v":998.58},1,{"$f":"I35","v":104.19999999999999},1,1945.78,2043.069,10,2050]
["Top Coat (3 Coats)",null,"m2",null,{"$f":"E37","v":843},1,{"$f":"G37","v":998.58},1,{"$f":"I37","v":104.19999999999999},1,1945.78,2043.069,10,2050]
["Excavations"]
["700x300 Strip Footings",null,"m3",null,{"$f":"(E6/0.3)*0.8","v":45.36},1,{"$f":"(G6/0.3)*0.8","v":46.99520000000001},1,{"$f":"(I6/0.3)*0.8","v":6.944},1,99.29920000000001,104.26416000000002,10,110]
["500x250 Strip Footings",null,"m3",null,{"$f":"(E7/0.25)*0.75","v":13.8},1,{"$f":"(G7/0.25)*0.75","v":20.475},1,{"$f":"(I7/0.25)*0.75","v":0.8699999999999999},1,35.145,36.90225,10,40]
["Strip Top Spoil",null,"m2",null,{"$f":"E8*1.2","v":164.75999999999996},1,{"$f":"G8*1.2","v":175.08},1,{"$f":"I8*1.2","v":11.4},1,351.23999999999995,368.80199999999996,10,370]
[]
["Water Proofing"]
["DPC Walls",{"$nulls":10},{"$f":"(L6/0.7/0.3)+(L7/0.5/0.25)","v":284.592},10,{"$f":"ROUNDUP((L45/M45),0)*M45","v":290}]
["DPC Floor",{"$nulls":10},{"$f":"K8/0.075","v":292.7},10,300]
[]
[]
[]
[]
["Sports Field",null,"m2",null,19150]
["Leveling of Site",null,"m3",null,{"$f":"E51*0.3","v":5745},{"$nulls":6},{"$f":"E52","v":5745},10,{"$f":"ROUNDUP((L52/M52),0)*M52","v":5750}]
[]
["Parking Area",null,"m2",null,2500,{"$nulls":6},{"$f":"E54","v":2500},5,{"$f":"ROUNDUP((L54/M54),0)*M54","v":2500}]
["Bulk Excavation",null,"m3",null,{"$f":"E54*0.4","v":1000},{"$nulls":6},1000,5,1000]
["Selected",null,"m3",null,{"$f":"E54*0.15","v":375},{"$nulls":6},{"$f":"E56","v":375},5,{"$f":"ROUNDUP((L56/M56),0)*M56","v":375}]
["Sub Base",null,"m3",null,{"$f":"E54*0.15","v":375},{"$nulls":6},375,5,375]
["Stabilization",{"$nulls":10},0,5,0]